bitfinex/quotes_SOLUSD_20251001
["timestamp","ask_amount","ask_price","bid_price","bid_amount"]
[1759339154501,0.2,219.23,219.22,25.64595072]
[1759339154885,0.2,219.23,219.22,4.84595072]
[1759339155097,0.2,219.23,219.22,29.41949247]
[1759339156114,0.2,219.23,219.22,18.54301726]
[1759339156290,0.89,219.23,219.22,20.8]
[1759339157194,0.89,219.23,219.22,25.36162758]
[1759339158005,0.2,219.23,219.22,25.36162758]
[1759339158299,0.89,219.23,219.22,25.36162758]
[1759339158508,0.2,219.23,219.22,25.36162758]
[1759339158885,0.2,219.23,219.22,57.70162758]
[1759339160687,0.2,219.23,219.22,136.50162758]
[1759339161291,0.2,219.23,219.22,136.78595072]
[1759339163706,0.2,219.25,219.24,20.8]
[1759339163909,0.2,219.32,219.28,0.28432314]
[1759339164207,0.2,219.32,219.31,20.8]
[1759339164387,0.2,219.32,219.31,53.14]
[1759339164585,0.2,219.32,219.31,53.42432314]
[1759339165488,0.2,219.32,219.31,57.98407873]
[1759339165807,0.2,219.32,219.31,59.80977078]
[1759339170810,0.2,219.32,219.31,70.68624599]
[1759339171618,0.2,219.32,219.31,57.82191716]
[1759339171820,0.2,219.32,219.31,57.96407873]
[1759339171998,0.92,219.32,219.31,57.96407873]
[1759339172313,0.92,219.32,219.31,136.76407873]
[1759339173604,0.2,219.32,219.31,136.76407873]
[1759339174208,0.2,219.32,219.31,138.58985411]
[1759339174929,0.2,219.32,219.31,136.76407873]
[1759339178419,0.92,219.32,219.31,136.76407873]
[1759339179406,0.92,219.32,219.31,136.47975559]
[1759339179701,0.92,219.32,219.31,136.76407873]
[1759339179909,0.92,219.32,219.26,78.8]
[1759339180102,2.05198685,219.29,219.26,78.8]
[1759339180412,0.72,219.28,219.26,136.46077951]
[1759339180616,2.05198685,219.29,219.28,20.8]
[1759339181316,2.77198685,219.29,219.28,20.8]
[1759339182714,2.77198685,219.29,219.25,4.56088805]
[1759339183018,2.05198685,219.26,219.23,36.86140252]
[1759339183193,0.72,219.25,219.23,36.86140252]
[1759339183515,0.72,219.24,219.23,36.86140252]
[1759339183722,0.72,219.24,219.23,20.8]
[1759339183925,0.72,219.24,219.22,32.3]
[1759339183926,2.77198685,219.24,219.22,32.3]
[1759339184130,0.72,219.23,219.22,32.3]
[1759339185733,0.72,219.23,219.22,36.86162758]
[1759339186418,0.72,219.25,219.22,36.86162758]
[1759339186624,0.72,219.24,219.22,36.86162758]
[1759339188035,0.72,219.23,219.22,36.86162758]
[1759339190241,0.72,219.23,219.22,20.8]
[1759339190424,0.72,219.23,219.22,53.1]
[1759339191037,0.72,219.23,219.22,32.3]
[1759339191228,0.72,219.23,219.21,25.36183568]
[1759339191431,2.05198685,219.27,219.22,32.3]
[1759339191732,2.05198685,219.27,219.21,25.36183568]
[1759339191934,0.72,219.26,219.22,32.3]
[1759339192106,0.72,219.25,219.22,32.3]
[1759339192306,0.72,219.24,219.23,4.56141951]
[1759339194246,0.72,219.24,219.22,32.3]
[1759339194428,0.7,219.23,219.22,36.86148061]
[1759339199037,0.7,219.23,219.22,115.66148061]
[1759339200342,0.7,219.23,219.18,4.56000559]
[1759339200543,2.75198685,219.22,219.18,32.3]
[1759339200721,0.7,219.21,219.17,36.86259908]
[1759339200928,0.7,219.2,219.17,36.86259908]
[1759339201131,0.7,219.19,219.17,36.86259908]
[1759339203244,0.7,219.19,219.16,11.40701874]
[1759339203451,0.7,219.19,219.17,32.3]
[1759339204158,0.7,219.23,219.17,32.3]
[1759339204534,0.7,219.26,219.2,20.8]
[1759339204850,0.7,219.26,219.21,32.3]
[1759339205253,0.7,219.25,219.22,15.96569655]
[1759339205839,0.7,219.24,219.22,15.96569655]
[1759339206039,0.7,219.24,219.23,32.3]
[1759339206848,0.7,219.24,219.22,115.66162758]
[1759339209527,0.2,219.32,219.25,20.8]
[1759339209753,0.2,219.32,219.26,32.3]
[1759339209935,0.7,219.31,219.26,32.3]
[1759339210142,0.7,219.3,219.26,32.3]
[1759339210647,0.9,219.32,219.26,32.3]
[1759339210856,0.2,219.32,219.29,20.8]
[1759339211050,0.2,219.32,219.3,32.3]
[1759339211744,0.2,219.32,219.31,4.55975559]
[1759339213538,4.10445481,219.32,219.3,4.55994818]
[1759339213743,3.40445481,219.32,219.31,32.28]
[1759339214372,4.10445481,219.32,219.31,32.28]
[1759339214537,4.10445481,219.32,219.29,20.8]
[1759339214876,0.7,219.31,219.29,53.08]
[1759339215030,0.7,219.3,219.29,53.08]
[1759339215856,0.7,219.3,219.29,57.64017146]
[1759339216069,0.7,219.3,219.29,25.36017146]
[1759339216554,0.7,219.3,219.29,20.8]
[1759339216748,3.90445481,219.3,219.27,4.56057573]
[1759339216957,3.20445481,219.3,219.29,32.28]
[1759339217557,3.90445481,219.3,219.29,32.28]
[1759339217936,3.90445481,219.3,219.28,25.36027357]
[1759339218270,0.7,219.29,219.28,57.64027357]
[1759339218431,0.7,219.29,219.28,36.84027357]
[1759339220850,0.7,219.29,219.25,11.40233313]
[1759339220851,0.7,219.29,219.25,15.96333655]
[1759339221175,0.67,219.28,219.26,32.28]
[1759339221667,0.67,219.28,219.25,15.96333655]
[1759339221871,0.67,219.28,219.26,32.28]
[1759339222274,0.67,219.28,219.25,15.96333655]
[1759339222573,3.20445481,219.3,219.25,15.96333655]
[1759339222574,3.20445481,219.3,219.26,32.28]
[1759339222873,0.67,219.29,219.25,15.96333655]
[1759339223057,3.87445481,219.31,219.27,32.28]
[1759339223257,3.40445481,219.32,219.27,32.28]
[1759339223456,0.67,219.31,219.27,32.28]
[1759339223763,0.66,219.3,219.28,4.56037942]
[1759339223964,0.66,219.3,219.29,32.28]
[1759339225564,3.86445481,219.3,219.29,32.28]
[1759339227160,3.86445481,219.3,219.29,36.84017146]
[1759339227974,4.06445481,219.32,219.29,36.84017146]
[1759339228172,3.40445481,219.32,219.29,36.84017146]
[1759339228670,0.66,219.31,219.29,48.24060011]
[1759339229675,0.66,219.3,219.29,36.84017146]
[1759339230992,0.66,219.3,219.29,32.28]
[1759339232288,0.66,219.3,219.29,36.84017146]
[1759339233767,0.2,219.32,219.29,36.84017146]
[1759339233956,0.86,219.32,219.3,32.26]
[1759339234360,0.86,219.32,219.29,4.56017146]
[1759339234563,0.86,219.32,219.3,32.26]
[1759339235266,0.66,219.31,219.3,32.26]
[1759339235468,0.2,219.32,219.3,32.26]
[1759339235760,0.2,219.32,219.31,4.55975559]
[1759339235959,0.86,219.32,219.31,4.55975559]
[1759339236368,0.2,219.32,219.31,4.55975559]
[1759339236763,0.86,219.32,219.31,4.55975559]
[1759339239681,0.2,219.32,219.31,4.55975559]
[1759339241796,0.86,219.32,219.31,4.55975559]
[1759339243064,0.2,219.32,219.31,4.55975559]
[1759339243473,0.2,219.32,219.31,36.81975559]
[1759339243968,0.86,219.32,219.31,36.81975559]
[1759339245180,0.86,219.32,219.31,32.26]
[1759339246621,4.06445481,219.32,219.26,11.40152442]
[1759339246791,3.86445481,219.31,219.27,36.8205874]
[1759339246999,0.66,219.3,219.27,36.8205874]
[1759339247303,0.66,219.29,219.27,36.8205874]
[1759339247504,3.20445481,219.31,219.27,36.8205874]
[1759339247683,0.66,219.3,219.27,36.8205874]
[1759339249890,0.66,219.29,219.27,36.8205874]
[1759339250085,0.66,219.28,219.27,4.5605874]
[1759339250291,0.66,219.28,219.27,36.8205874]
[1759339250705,0.66,219.3,219.27,36.8205874]
[1759339251009,0.66,219.29,219.27,36.8205874]
[1759339251591,3.20445481,219.31,219.27,4.5605874]
[1759339251800,0.66,219.3,219.28,32.24]
[1759339251989,0.66,219.3,219.29,4.56017146]
[1759339252583,0.2,219.32,219.29,4.56017146]
[1759339252809,0.66,219.31,219.29,4.56017146]
[1759339253008,0.66,219.3,219.28,32.24]
[1759339253214,0.66,219.29,219.28,32.24]
[1759339254292,0.66,219.29,219.28,36.80037942]
[1759339254793,0.66,219.29,219.28,32.24]
[1759339255215,0.66,219.29,219.28,36.80037942]
[1759339256705,0.66,219.29,219.28,32.24]
[1759339257923,0.66,219.29,219.28,36.80037942]
[1759339258594,0.7,219.3,219.28,36.80037942]
[1759339262503,0.2,219.32,219.3,32.24]
[1759339264312,0.2,219.32,219.31,4.55975559]
[1759339264824,0.9,219.32,219.31,4.55975559]
[1759339265129,0.9,219.32,219.31,36.79975559]
[1759339265509,0.9,219.32,219.3,4.55995896]
[1759339265814,0.7,219.31,219.3,4.55995896]
[1759339266008,3.90445481,219.31,219.27,4.5605874]
[1759339266202,0.7,219.3,219.28,32.24]
[1759339266409,0.7,219.29,219.28,36.80037942]
[1759339267414,0.7,219.29,219.28,32.24]
[1759339267813,3.90445481,219.29,219.23,11.40314136]
[1759339268108,3.20445481,219.26,219.24,36.78121145]
[1759339268309,0.7,219.25,219.2,36.76690129]
[1759339268524,0.7,219.25,219.21,32.22]
[1759339271226,0.7,219.25,219.22,4.56162758]
[1759339271424,0.7,219.25,219.23,32.22]
[1759339273008,4.56024634,219.29,219.2,20.8]
[1759339273009,2.75111299,219.24,219.21,4.56182092]
[1759339273208,0.7,219.23,219.21,36.78182092]
[1759339273416,0.7,219.22,219.21,36.78182092]
[1759339274032,0.7,219.24,219.21,36.78182092]
[1759339274415,0.7,219.23,219.21,36.78182092]
[1759339275615,0.7,219.25,219.22,32.22]
[1759339275938,0.7,219.24,219.22,32.22]
[1759339276512,2.05111299,219.26,219.22,36.78144941]
[1759339276724,0.7,219.25,219.22,36.78144941]
[1759339277016,0.7,219.24,219.22,36.78144941]
[1759339277211,2.05111299,219.26,219.22,36.78144941]
[1759339277533,0.7,219.24,219.22,36.78144941]
[1759339278338,0.7,219.24,219.22,4.56144941]
[1759339278843,0.7,219.29,219.23,32.22]
[1759339279029,2.05111299,219.3,219.23,111.02]
[1759339279224,0.7,219.28,219.23,111.02]
[1759339279429,0.7,219.27,219.23,111.02]
[1759339279830,0.7,219.27,219.24,4.56121145]
[1759339280126,0.7,219.26,219.24,4.56121145]
[1759339283047,2.05111299,219.27,219.24,36.78121145]
[1759339283242,2.71111299,219.27,219.24,36.78121145]
[1759339283445,0.66,219.27,219.24,36.78121145]
[1759339283753,0.69,219.26,219.24,36.78121145]
[1759339285646,2.74111299,219.25,219.2,25.36201234]
[1759339285822,0.69,219.25,219.2,36.76712182]
[1759339286334,2.74111299,219.27,219.2,36.76712182]
[1759339286631,0.69,219.27,219.21,32.22]
[1759339287027,0.69,219.3,219.21,32.22]
[1759339287333,2.74111299,219.3,219.21,32.22]
[1759339287516,0.69,219.29,219.22,15.96569655]
[1759339287721,0.69,219.29,219.23,32.22]
[1759339287946,0.69,219.28,219.23,32.22]
[1759339288354,2.74111299,219.3,219.23,32.22]
[1759339288556,2.74111299,219.3,219.24,0.28432314]
[1759339288557,0.69,219.3,219.24,0.28432314]
[1759339288734,0.2,219.32,219.25,32.22]
[1759339289241,0.2,219.32,219.26,11.16079835]
[1759339289448,0.2,219.32,219.27,32.22]
[1759339289650,0.2,219.32,219.28,15.96132797]
[1759339289829,0.2,219.32,219.29,32.22]
[1759339290454,0.2,219.32,219.28,15.96132797]
[1759339290455,2.74111299,219.31,219.28,4.56037942]
[1759339290627,0.2,219.32,219.26,36.7607954]
[1759339290628,2.74111299,219.3,219.26,36.7607954]
[1759339290826,0.69,219.3,219.26,36.7607954]
[1759339292340,0.69,219.3,219.26,48.1627839]
[1759339292544,0.2,219.32,219.26,48.1627839]
[1759339293740,0.2,219.32,219.28,15.96132797]
[1759339293943,0.2,219.32,219.29,32.2]
[1759339295858,0.2,219.32,219.3,4.55996352]
[1759339296040,0.2,219.32,219.31,32.2]
[1759339297146,0.2,219.32,219.31,36.75975559]
[1759339305950,0.2,219.32,219.31,115.55975559]
[1759339306335,0.2,219.32,219.31,115.84407873]
[1759339306742,0.2,219.32,219.31,126.72055394]
[1759339309843,1e-08,219.32,219.31,126.72055394]
[1759339310246,1e-08,219.37,219.36,0.28432314]
[1759339310450,1e-08,219.37,219.36,111.26432314]
[1759339310756,1e-08,219.37,219.36,115.8230394]
[1759339310957,1e-08,219.37,219.36,124.80010356]
[1759339318456,8.97706416,219.41,219.4,20.8]
[1759339318758,8.97706416,219.41,219.4,53.24432314]
[1759339319135,9.68706416,219.41,219.4,53.24432314]
[1759339319540,0.2,219.42,219.4,53.24432314]
[1759339319759,0.91,219.42,219.4,132.04432313]
[1759339319956,0.91,219.42,219.41,4.5576774]
[1759339320156,0.2,219.42,219.41,4.5576774]
[1759339320349,0.91,219.42,219.41,4.5576774]
[1759339321254,0.2,219.42,219.41,4.5576774]
[1759339321642,0.2,219.42,219.41,4.84200054]
[1759339323355,0.91,219.42,219.41,4.84200054]
[1759339323557,0.2,219.42,219.41,4.84200054]
[1759339323756,0.2,219.42,219.41,83.64200053]
[1759339324460,0.2,219.42,219.41,94.51847574]
[1759339324867,0.2,219.42,219.41,126.65847574]
[1759339326080,0.2,219.42,219.41,94.51847574]
[1759339326369,0.2,219.42,219.41,126.65847574]
[1759339328269,0.2,219.42,219.41,94.51847574]
[1759339328461,0.2,219.42,219.41,126.65847574]
[1759339329173,0.2,219.42,219.41,128.48325163]
[1759339333060,0.2,219.42,219.41,4.5576774]
[1759339333061,0.91,219.42,219.41,4.5576774]
[1759339333260,0.91,219.42,219.41,36.6976774]
[1759339333755,0.91,219.42,219.41,57.4976774]
[1759339335163,0.91,219.42,219.41,57.78200054]
[1759339335563,0.91,219.42,219.41,25.64200054]
[1759339335763,0.91,219.42,219.41,57.78200054]
[1759339338767,0.91,219.42,219.41,136.58200053]
[1759339339176,0.91,219.42,219.41,147.45847574]
[1759339341670,0.91,219.42,219.41,147.43847574]
[1759339344467,0.91,219.42,219.41,104.44200053]
[1759339344674,0.91,219.42,219.41,136.27767739]
[1759339346895,0.91,219.42,219.41,104.15767739]
[1759339347073,0.91,219.42,219.41,136.27767739]
[1759339348191,0.91,219.42,219.41,104.15767739]
[1759339348385,0.91,219.42,219.41,131.71999999]
[1759339348790,0.91,219.42,219.41,136.27767739]
[1759339349379,0.91,219.42,219.41,131.71999999]
[1759339349800,0.91,219.42,219.41,78.79999999]
[1759339349992,0.91,219.42,219.41,110.91999999]
[1759339350171,0.91,219.42,219.39,4.55809096]
[1759339350378,3.19758851,219.4,219.36,4.55871626]
[1759339350687,0.72,219.39,219.37,32.12]
[1759339350883,0.72,219.38,219.37,32.12]
[1759339351389,0.72,219.38,219.37,36.67850845]
[1759339352800,0.72,219.38,219.37,32.12]
[1759339353098,3.91758851,219.38,219.37,32.12]
[1759339353293,0.72,219.38,219.37,32.12]
[1759339355101,0.72,219.38,219.37,36.67850845]
[1759339359894,0.72,219.38,219.37,32.12]
[1759339360191,0.72,219.38,219.37,36.67850845]
[1759339360581,0.72,219.4,219.37,48.07477959]
[1759339360776,0.72,219.39,219.37,48.07477959]
[1759339362600,0.2,219.42,219.37,48.07477959]
[1759339362601,3.39758851,219.42,219.37,48.07477959]
[1759339362802,0.72,219.39,219.37,48.07477959]
[1759339365507,0.72,219.39,219.37,126.87477958]
[1759339365709,0.72,219.39,219.37,94.75477958]
[1759339366015,0.72,219.39,219.38,32.1]
[1759339367208,4.11758851,219.42,219.39,4.55809289]
[1759339367400,0.72,219.41,219.4,32.1]
[1759339368210,0.72,219.41,219.39,36.65809289]
[1759339368395,0.72,219.4,219.39,36.65809289]
[1759339371390,0.92,219.42,219.39,48.05332512]
[1759339371707,0.2,219.42,219.41,20.8]
[1759339371911,0.2,219.42,219.41,142.86079834]
[1759339372315,0.2,219.42,219.41,146.25838685]
[1759339372938,1e-08,219.42,219.41,72.01606426]
[1759339377302,1e-08,219.42,219.41,150.81606426]
[1759339380130,1e-08,219.42,219.41,118.71606426]
[1759339380329,1e-08,219.42,219.41,150.79606426]
[1759339381032,0.71000001,219.42,219.41,107.55526591]
[1759339381231,0.71000001,219.42,219.41,136.2376774]
[1759339381722,0.71000001,219.42,219.41,136.52200054]
[1759339382826,1e-08,219.42,219.41,136.52200054]
[1759339383034,0.71000001,219.42,219.41,136.52200054]
[1759339386033,0.71000001,219.42,219.41,104.44200054]
[1759339386331,0.71000001,219.42,219.41,136.52200054]
[1759339389037,0.71000001,219.42,219.41,136.2376774]
[1759339389236,0.71000001,219.42,219.41,136.52200054]
[1759339390151,0.71000001,219.42,219.41,104.44200054]
[1759339390355,0.71000001,219.42,219.41,136.52200054]
[1759339390843,1e-08,219.42,219.41,136.52200054]
[1759339391341,1e-08,219.42,219.41,147.39847575]
[1759339391539,1e-08,219.45,219.42,11.16079835]
[1759339391721,1e-08,219.45,219.44,0.28432314]
[1759339392323,1e-08,219.45,219.44,2.10876611]
[1759339393039,1e-08,219.45,219.44,12.98524132]
[1759339393451,1e-08,219.45,219.44,17.54229564]
[1759339393751,0.2,219.51,219.46,78.79999999]
[1759339393936,0.2,219.51,219.5,26.78432314]
[1759339394248,0.2,219.51,219.5,58.84432314]
[1759339394431,0.91,219.51,219.5,58.84432314]
[1759339395539,0.91,219.51,219.5,63.40013179]
[1759339395920,0.91,219.51,219.5,31.34013179]
[1759339396134,0.91,219.51,219.5,63.40013179]
[1759339396842,0.2,219.51,219.5,63.40013179]
[1759339397039,0.2,219.51,219.5,74.276607]
[1759339397234,0.2,219.51,219.5,76.10071717]
[1759339398149,0.2,219.51,219.5,154.90071716]
[1759339402551,0.86,219.51,219.5,154.88071716]
[1759339402933,0.2,219.51,219.5,154.88071716]
[1759339404833,0.2,219.51,219.5,122.84071716]
[1759339405034,0.2,219.51,219.5,154.88071716]
[1759339406940,0.2,219.51,219.5,122.84071716]
[1759339407139,0.2,219.51,219.5,154.88071716]
[1759339407657,1e-08,219.52,219.51,11.16079835]
[1759339407841,1e-08,219.52,219.51,89.96079834]
[1759339409141,1e-08,219.52,219.51,99.75819826]
[1759339409752,1e-08,219.52,219.51,104.31379937]
[1759339413240,1e-08,219.52,219.51,136.35379937]
[1759339415836,1e-08,219.52,219.51,126.55639945]
[1759339416655,0.71000001,219.52,219.51,126.53639945]
[1759339417350,1e-08,219.52,219.51,126.53639945]
[1759339418877,0.71000001,219.52,219.51,94.51639945]
[1759339419178,0.71000001,219.52,219.51,126.53639945]
[1759339420573,1e-08,219.52,219.51,126.53639945]
[1759339425273,1e-08,219.52,219.51,94.51639945]
[1759339425569,0.71000001,219.52,219.51,126.53639945]
[1759339427446,0.71000001,219.52,219.51,115.65992424]
[1759339427873,0.71000001,219.52,219.51,126.53639945]
[1759339431062,0.71000001,219.52,219.51,115.65992424]
[1759339434556,0.71000001,219.52,219.51,126.53639945]
[1759339435359,0.71000001,219.52,219.51,4.55560111]
[1759339435560,0.71000001,219.52,219.51,57.35560111]
[1759339439461,1e-08,219.52,219.51,68.51639946]
[1759339439675,1e-08,219.52,219.51,147.31639945]
[1759339440264,0.71000001,219.52,219.51,147.31639945]
[1759339440870,1e-08,219.52,219.51,147.31639945]
[1759339441271,0.71000001,219.52,219.51,147.31639945]
[1759339442087,1e-08,219.52,219.51,147.31639945]
[1759339442265,0.71000001,219.52,219.51,147.31639945]
[1759339442787,1e-08,219.52,219.51,147.31639945]
[1759339445188,0.21000001,219.53,219.52,11.16079835]
[1759339445562,0.21000001,219.53,219.52,89.96079834]
[1759339447390,0.21000001,219.53,219.52,94.51619192]
[1759339448188,0.21000001,219.53,219.52,83.63971671]
[1759339450681,0.2,219.54,219.53,31.96079835]
[1759339450868,0.2,219.54,219.53,63.96079835]
[1759339452189,0.2,219.54,219.53,68.51598442]
[1759339454497,0.2,219.54,219.53,147.31598441]
[1759339456393,0.1,219.59,219.56,20.8]
[1759339456394,0.81,219.59,219.56,20.8]
[1759339456590,0.81,219.59,219.57,31.98]
[1759339457276,0.71,219.58,219.57,36.53435624]
[1759339458293,0.71,219.58,219.57,36.81867938]
[1759339458693,0.1,219.59,219.57,36.81867938]
[1759339458990,0.81,219.59,219.58,0.28432314]
[1759339459494,0.81,219.59,219.58,32.26432314]
[1759339459681,0.1,219.59,219.58,32.26432314]
[1759339460199,0.1,219.59,219.58,36.81847196]
[1759339461687,0.8,219.59,219.58,36.81847196]
[1759339462470,0.1,219.59,219.58,36.81847196]
[1759339462675,0.1,219.59,219.58,115.61847195]
[1759339463003,0.8,219.59,219.58,115.61847195]
[1759339464379,0.1,219.6,219.58,126.49494716]
[1759339466490,0.8,219.6,219.58,47.69494717]
[1759339467203,0.1,219.6,219.58,47.69494717]
[1759339470295,0.7,219.59,219.58,47.69494717]
[1759339472188,0.7,219.59,219.58,4.83847196]
[1759339472503,0.7,219.59,219.58,115.59847196]
[1759339476810,0.7,219.59,219.58,117.42200003]
[1759339479712,0.7,219.59,219.58,6.37767689]
[1759339480011,0.7,219.59,219.58,38.31767689]
[1759339483818,0.7,219.59,219.58,6.37767689]
[1759339484119,0.7,219.59,219.58,38.31767689]
[1759339486418,0.1,219.6,219.58,38.31767689]
[1759339486602,0.8,219.6,219.58,38.31767689]
[1759339486923,0.8,219.6,219.59,31.94]
[1759339490317,0.8,219.6,219.59,36.49394143]
[1759339492617,0.1,219.6,219.59,36.49394143]
[1759339492809,0.8,219.6,219.59,36.49394143]
[1759339495022,0.8,219.6,219.59,4.55394143]
[1759339495319,0.8,219.6,219.59,36.49394143]
[1759339496924,0.8,219.6,219.59,4.55394143]
[1759339497104,0.8,219.6,219.59,36.49394143]
[1759339498510,0.8,219.6,219.59,36.47394143]
[1759339499824,0.8,219.6,219.58,1.82352807]
[1759339500123,3.87415954,219.59,219.57,31.92]
[1759339500327,0.68,219.58,219.56,36.47456367]
[1759339500522,0.68,219.57,219.56,36.47456367]
[1759339501925,3.87415954,219.57,219.53,23.99415954]
[1759339502126,0.1,219.6,219.51,11.3885923]
[1759339502127,3.19415954,219.55,219.51,11.3885923]
[1759339502432,0.68,219.54,219.52,31.92]
[1759339502602,0.68,219.53,219.52,31.92]
[1759339503005,0.68,219.53,219.52,36.47539358]
[1759339503313,3.19415954,219.56,219.52,36.47539358]
[1759339503630,0.68,219.55,219.52,36.47539358]
[1759339503822,0.68,219.54,219.52,36.47539358]
[1759339505231,0.68,219.54,219.52,47.86387754]
[1759339507834,3.19415954,219.58,219.52,4.55539358]
[1759339507835,0.68,219.53,219.52,4.55539358]
[1759339508041,0.68,219.53,219.52,36.47539358]
[1759339509935,0.68,219.53,219.5,94.75561621]
[1759339510135,3.87415954,219.52,219.5,37.62]
[1759339510337,0.68,219.51,219.5,37.62]
[1759339510923,0.68,219.51,219.5,5.7]
[1759339510924,3.87415954,219.51,219.5,5.7]
[1759339513251,8.42976065,219.51,219.5,5.7]
[1759339514144,3.87415954,219.51,219.5,5.7]
[1759339514436,2.72702746,219.51,219.5,5.7]
[1759339514637,7.28262857,219.51,219.5,5.7]
[1759339514948,20.96993401,219.51,219.5,5.7]
[1759339515150,18.67019134,219.51,219.5,5.7]
[1759339515621,12.06756277,219.51,219.5,5.7]
[1759339515821,14.11459023,219.51,219.5,5.7]
[1759339516228,2.72702746,219.51,219.5,5.7]
[1759339516433,8.42702746,219.51,219.5,5.7]
[1759339516734,2.72702746,219.51,219.5,5.7]
[1759339524955,34.64702746,219.51,219.5,5.7]
[1759339527869,2.72702746,219.51,219.5,5.7]
[1759339528047,31.92,219.51,219.5,5.7]
[1759339528251,34.68702746,219.51,219.5,5.7]
[1759339528958,34.68702746,219.51,219.5,10.25580865]
[1759339529360,34.68702746,219.51,219.5,5.7]
[1759339534173,32.64,219.51,219.5,5.7]
[1759339534373,34.68702746,219.51,219.5,5.7]
[1759339534878,39.24262857,219.51,219.5,3.93]
[1759339535077,39.24262857,219.51,219.39,4.55790563]
[1759339535274,2.04702746,219.41,219.4,0.66]
[1759339535581,2.04702746,219.45,219.4,0.66]
[1759339535757,31.92,219.45,219.4,0.66]
[1759339536158,0.63,219.49,219.42,20.8]
[1759339536361,2.04702746,219.46,219.43,0.66]
[1759339536561,2.04702746,219.46,219.44,0.66]
[1759339536562,31.92,219.45,219.44,0.66]
[1759339536765,33.96702746,219.45,219.44,0.66]
[1759339537257,33.96702746,219.45,219.41,0.66]
[1759339537456,2.04702746,219.43,219.42,0.66]
[1759339538860,31.92,219.45,219.4,0.66]
[1759339539063,2.04702746,219.42,219.41,0.66]
[1759339539286,2.04702746,219.43,219.42,0.66]
[1759339539857,33.96702746,219.43,219.42,0.66]
[1759339540866,33.96702746,219.43,219.42,5.21746969]
[1759339541062,33.96702746,219.43,219.42,0.66]
[1759339542871,33.96702746,219.43,219.42,5.21746969]
[1759339544674,2.04702746,219.43,219.42,5.21746969]
[1759339544869,33.96702746,219.43,219.42,5.21746969]
[1759339545390,31.92,219.43,219.42,5.21746969]
[1759339545682,2.04702746,219.45,219.42,5.21746969]
[1759339545883,33.96702746,219.45,219.43,0.66]
[1759339546066,33.96702746,219.46,219.43,0.66]
[1759339546261,33.96702746,219.46,219.44,0.66]
[1759339546888,2.04702746,219.45,219.44,0.66]
[1759339547388,2.04702746,219.45,219.43,4.55715703]
[1759339547605,25.58249104,219.54,219.43,15.95031202]
[1759339547767,2.04702746,219.51,219.43,15.95031202]
[1759339548084,2.04702746,219.51,219.44,0.66]
[1759339548869,2.04702746,219.51,219.45,15.94896331]
[1759339549082,2.04702746,219.51,219.46,0.66]
[1759339549283,2.04702746,219.52,219.46,0.66]
[1759339549609,0.63,219.55,219.46,0.66]
[1759339549888,2.04702746,219.52,219.46,0.66]
[1759339550193,33.94702746,219.53,219.46,0.66]
[1759339550699,3.03204554,219.56,219.47,10.87647521]
[1759339550865,11.81598906,219.57,219.47,10.87647521]
[1759339550866,2.04702746,219.55,219.48,16.6067833]
[1759339551070,2.04702746,219.55,219.49,0.66]
[1759339551269,43.08598906,219.57,219.49,0.66]
[1759339551471,2.04702746,219.55,219.49,0.66]
[1759339553110,2.04702746,219.55,219.5,4.55580865]
[1759339553401,2.04702746,219.55,219.51,0.66]
[1759339553577,2.04702746,219.55,219.52,0.71]
[1759339554776,45.13301652,219.57,219.53,0.71]